bitfinex/quotes_SOLUSD_20250421
["timestamp","ask_amount","ask_price","bid_price","bid_amount"]
[1745237529996,25.12562813,139.3,139.26,1.96596551]
[1745237530590,25.12562813,139.3,139.24,1.96596551]
[1745237530804,25.12562813,139.3,139.25,18.64964886]
[1745237531006,25.12562813,139.3,139.24,1.96596551]
[1745237531379,25.12562813,139.3,139.25,1.96596551]
[1745237531800,0.14216157,139.29,139.25,1.96596551]
[1745237532108,40.28562813,139.3,139.24,1.96596551]
[1745237532395,40.28562813,139.3,139.22,26.0]
[1745237532609,76.17938261,139.3,139.22,26.0]
[1745237532990,0.14216157,139.29,139.19,18.64964886]
[1745237533403,0.14216157,139.29,139.2,26.0]
[1745237533901,1.5458,139.27,139.2,26.0]
[1745237534106,6.4184,139.26,139.18,0.063]
[1745237534608,6.4184,139.26,139.18,26.063]
[1745237535102,6.4184,139.26,139.18,0.063]
[1745237535600,6.4184,139.26,139.18,26.063]
[1745237535799,25.1346499,139.25,139.18,26.063]
[1745237537213,61.04129262,139.25,139.18,0.063]
[1745237537583,76.20129262,139.25,139.18,0.063]
[1745237540311,61.04129262,139.25,139.18,0.063]
[1745237547021,0.14216157,139.24,139.18,0.063]
[1745237547702,61.04129262,139.25,139.18,0.063]
[1745237548931,25.1346499,139.25,139.21,26.0]
[1745237549110,7.18132854,139.25,139.21,26.0]
[1745237549305,7.18132854,139.25,139.22,18.64964886]
[1745237550722,17.9509703,139.27,139.22,18.64964886]
[1745237551190,17.9509703,139.27,139.19,1.5827]
[1745237551396,1.6499,139.26,139.18,0.063]
[1745237552718,25.1346499,139.25,139.18,0.063]
[1745237553722,61.04129262,139.25,139.18,0.063]
[1745237554028,6.3757,139.24,139.18,0.063]
[1745237554902,25.13826042,139.23,139.18,0.063]
[1745237556330,61.05006103,139.23,139.18,0.063]
[1745237558324,25.13826042,139.23,139.18,0.063]
[1745237559938,0.14216157,139.22,139.18,0.063]
[1745237560238,25.14187198,139.21,139.18,0.063]
[1745237561142,25.14187198,139.21,139.17,0.063]
[1745237562436,17.95847999,139.21,139.17,0.063]
[1745237563533,17.95847999,139.21,139.16,0.063]
[1745237563718,1.5044,139.2,139.16,0.063]
[1745237565739,25.14548458,139.19,139.16,0.063]
[1745237569914,17.96106042,139.19,139.16,0.063]
[1745237570618,7.18390804,139.2,139.16,18.71264886]
[1745237570817,25.14367815,139.2,139.16,18.71264886]
[1745237572343,61.05006103,139.23,139.16,20.36584886]
[1745237574240,61.05006103,139.23,139.16,1.7162]
[1745237579136,61.05006103,139.23,139.16,20.36584886]
[1745237582048,61.05006103,139.23,139.16,1.7162]
[1745237582255,6.4428,139.21,139.16,0.063]
[1745237582439,87.2128,139.21,139.16,0.063]
[1745237583534,25.14367815,139.2,139.16,0.063]
[1745237590666,80.77,139.21,139.16,0.063]
[1745237591767,25.14367815,139.2,139.16,0.063]
[1745237593866,7.18339199,139.21,139.18,26.0]
[1745237594243,25.14187198,139.21,139.18,26.0]
[1745237594960,25.14187198,139.21,139.17,18.64964886]
[1745237595268,25.14187198,139.21,139.16,26.063]
[1745237595970,61.05006103,139.23,139.16,26.063]
[1745237604386,61.05006103,139.23,139.17,18.64964886]
[1745237604681,25.13826042,139.23,139.17,20.29114886]
[1745237607680,25.1646499,139.25,139.17,20.29114886]
[1745237609579,7.21132854,139.25,139.21,18.64964886]
[1745237609779,7.21132854,139.25,139.22,1.78366157]
[1745237610079,0.03,139.25,139.24,26.0]
[1745237610290,0.03,139.25,139.24,44.79181043]
[1745237611580,0.03,139.25,139.24,51.25547029]
[1745237611783,0.03,139.25,139.24,44.79181043]
[1745237612364,0.03,139.25,139.24,51.25547029]
[1745237612761,0.03,139.25,139.24,131.95547029]
[1745237614589,0.03,139.25,139.24,125.49181043]
[1745237614984,0.03,139.25,139.24,44.64964886]
[1745237620701,0.03,139.25,139.24,44.79181043]
[1745237623299,0.03,139.25,139.24,125.49181043]
[1745237624781,0.03,139.25,139.24,131.95547029]
[1745237625988,0.03,139.25,139.24,125.49181043]
[1745237626297,0.03,139.25,139.24,125.34964886]
[1745237626589,0.03,139.25,139.24,125.49181043]
[1745237627370,0.03,139.25,139.24,44.79181043]
[1745237629494,0.03,139.25,139.24,44.64964886]
[1745237631603,0.03,139.25,139.24,44.79181043]
[1745237631904,0.03,139.25,139.24,51.25547029]
[1745237632286,0.03,139.25,139.24,44.79181043]
[1745237633004,0.03,139.25,139.24,51.25547029]
[1745237633476,0.03,139.25,139.24,44.79181043]
[1745237633676,0.03,139.25,139.24,44.64964886]
[1745237635497,0.03,139.25,139.24,51.25547029]
[1745237635795,0.03,139.25,139.24,44.79181043]
[1745237637200,0.03,139.25,139.24,51.25547029]
[1745237639595,0.03,139.25,139.24,44.79181043]
[1745237639979,0.03,139.25,139.24,51.25547029]
[1745237640180,0.03,139.25,139.24,131.95547029]
[1745237646795,0.03,139.25,139.24,125.49181043]
[1745237647715,0.03,139.25,139.24,18.64964886]
[1745237647911,0.03,139.25,139.21,14.68]
[1745237648109,0.03,139.25,139.22,26.0]
[1745237649308,0.03,139.25,139.21,33.32964886]
[1745237649516,0.03,139.25,139.21,14.68]
[1745237649713,0.03,139.25,139.22,18.64964886]
[1745237652721,0.03,139.25,139.21,26.0]
[1745237653902,0.03,139.25,139.24,44.64964886]
[1745237656250,0.03,139.25,139.22,26.0]
[1745237664713,0.03,139.25,139.24,44.64964886]
[1745237664932,0.03,139.25,139.24,26.0]
[1745237665616,0.03,139.25,139.22,18.64964886]
[1745237666314,0.03,139.25,139.21,26.0]
[1745237670133,0.03,139.25,139.22,18.64964886]
[1745237672234,0.03,139.25,139.24,26.0]
[1745237672415,0.03,139.25,139.24,44.64964886]
[1745237675408,0.03,139.25,139.24,44.79181043]
[1745237677245,0.03,139.25,139.24,44.64964886]
[1745237679033,0.03,139.25,139.24,51.25547029]
[1745237679247,0.03,139.25,139.24,44.64964886]
[1745237680535,0.03,139.25,139.24,44.79181043]
[1745237680738,0.03,139.25,139.24,52.76677029]
[1745237681042,0.03,139.25,139.24,44.64964886]
[1745237683535,0.03,139.25,139.24,44.79181043]
[1745237684040,0.03,139.25,139.24,44.64964886]
[1745237684253,0.03,139.25,139.24,51.25547029]
[1745237684551,0.03,139.29,139.28,44.64964886]
[1745237684721,0.03,139.31,139.29,18.64964886]
[1745237685548,0.03,139.31,139.3,25.11052466]
[1745237686721,0.03,139.31,139.3,18.64964886]
[1745237687333,0.03,139.31,139.3,44.64964886]
[1745237688233,0.03,139.31,139.3,44.79181043]
[1745237690431,0.03,139.33,139.31,18.79181043]
[1745237690631,7.20514529,139.37,139.31,18.79181043]
[1745237693957,7.20514529,139.37,139.31,25.25220836]
[1745237694138,7.20514529,139.37,139.31,18.79181043]
[1745237698460,25.14300853,139.37,139.31,18.79181043]
[1745237701768,7.20514529,139.37,139.31,25.25221005]
[1745237702758,7.20514529,139.37,139.31,18.79181043]
[1745237704654,25.14300853,139.37,139.31,18.79181043]
[1745237704841,25.14300853,139.37,139.29,18.64964886]
[1745237705158,25.14300853,139.37,139.29,18.61884043]
[1745237705655,1.6491,139.36,139.29,18.61884043]
[1745237705957,6.32,139.35,139.29,18.61884043]
[1745237707155,25.11841538,139.34,139.29,18.61884043]
[1745237707364,25.11841538,139.34,139.28,14.62]
[1745237707560,25.11841538,139.34,139.26,18.64964886]
[1745237707760,1.5586,139.33,139.26,18.64964886]
[1745237707967,1.5586,139.33,139.23,14.663]
[1745237708340,1.5586,139.33,139.24,18.64964886]
[1745237709171,25.12743196,139.29,139.24,18.64964886]
[1745237709373,25.12743196,139.29,139.23,0.063]
[1745237709674,1.5586,139.28,139.23,0.063]
[1745237711369,25.13104042,139.27,139.23,0.063]
[1745237739279,0.14216157,139.26,139.23,0.063]
[1745237740600,7.18132854,139.25,139.23,0.063]
[1745237748505,25.13104042,139.27,139.23,0.063]
[1745237748884,7.18029726,139.27,139.23,20.34214886]
[1745237749082,7.18029726,139.27,139.23,26.80274886]
[1745237749305,17.9457965,139.31,139.23,26.80274886]
[1745237749516,17.9457965,139.31,139.26,26.0]
[1745237752711,17.9457965,139.31,139.27,26.0]
[1745237758408,17.9457965,139.31,139.23,88.8531]
[1745237758602,17.9457965,139.31,139.26,26.0]
[1745237763702,17.9457965,139.31,139.27,18.64964886]
[1745237764025,61.00318756,139.34,139.27,18.64964886]
[1745237775734,0.14216157,139.33,139.26,26.0]
[1745237776022,31.58422124,139.32,139.24,18.64964886]
[1745237776999,0.14216157,139.31,139.23,0.063]
[1745237777305,0.14216157,139.29,139.23,0.063]
[1745237777927,25.13284503,139.26,139.23,0.063]
[1745237779311,17.95203217,139.26,139.23,0.063]
[1745237781027,17.95203217,139.26,139.23,1e-08]
[1745237785230,35.90094993,139.28,139.23,1e-08]
[1745237786403,86.92516157,139.27,139.23,1e-08]
[1745237787426,25.13284503,139.26,139.23,1e-08]
[1745237788119,0.14216157,139.25,139.23,1e-08]
[1745237789728,7.32400586,139.24,139.23,1e-08]
[1745237789908,88.09400586,139.24,139.23,1e-08]
[1745237791914,0.14216157,139.23,139.18,1e-08]
[1745237792318,87.3817,139.22,139.15,0.063]
[1745237792528,80.91216157,139.21,139.15,0.063]
[1745237792727,1.5694,139.2,139.15,1e-08]
[1745237793929,25.14548458,139.19,139.15,1e-08]
[1745237798732,0.14216157,139.18,139.15,1e-08]
[1745237799345,7.18545663,139.17,139.15,1e-08]
[1745237801442,25.14548458,139.19,139.15,1e-08]
[1745237803641,80.91216157,139.18,139.14,1e-08]
[1745237804047,95.53216157,139.18,139.13,1e-08]
[1745237805031,0.14216157,139.16,139.13,1e-08]
[1745237805219,7.18648939,139.15,139.13,1e-08]
[1745237807249,17.96539094,139.16,139.13,1e-08]
[1745237834894,25.15136392,139.16,139.13,1e-08]
[1745237841417,26.0,139.13,139.12,1e-08]
[1745237841577,26.0,139.14,139.09,1e-08]
[1745237841895,80.91216157,139.13,139.09,1e-08]
[1745237842086,95.53216157,139.13,139.09,1e-08]
[1745237842906,95.53216157,139.13,139.06,0.063]
[1745237843075,0.14216157,139.11,139.07,1e-08]
[1745237845202,25.16175412,139.1,139.07,1e-08]
[1745237847306,0.14216157,139.11,139.06,1e-08]
[1745237850316,25.16175412,139.1,139.06,1e-08]
[1745237851820,26.0,139.09,139.06,1e-08]
[1745237853294,7.19010641,139.08,139.06,1e-08]
[1745237854712,25.16175412,139.1,139.06,1e-08]
[1745237863220,25.16175412,139.1,139.02,1.683]
[1745237863221,0.14216157,139.09,139.02,1.683]
[1745237863518,14.76216157,139.09,139.02,1.683]
[1745237863821,26.0,139.08,139.02,0.063]
[1745237865122,61.12029911,139.07,139.02,0.063]
[1745237866021,61.12029911,139.07,139.01,0.063]
[1745237866411,0.14216157,139.04,139.0,1e-08]
[1745237867119,25.17442278,139.03,139.0,1e-08]
[1745237867306,61.1378839,139.03,138.95,1.6293]
[1745237867510,61.1378839,139.03,138.95,27.6293]
[1745237868122,61.1378839,139.03,138.96,18.64964886]
[1745237868311,61.1378839,139.03,138.96,44.64964886]
[1745237868720,25.17442278,139.03,139.0,18.64964886]
[1745237868912,7.19269222,139.03,139.02,18.64964886]
[1745237869099,25.16718198,139.07,139.02,18.64964886]
[1745237873633,25.16356315,139.09,139.02,18.64964886]
[1745237875427,25.16356315,139.09,139.02,51.01274886]
[1745237875631,25.16356315,139.09,139.02,56.76722211]
[1745237875832,25.16356315,139.09,139.02,56.76729774]
[1745237876727,25.16356315,139.09,139.02,51.01274886]
[1745237877234,25.16356315,139.09,139.03,0.14216157]
[1745237877729,25.15813685,139.12,139.03,0.14216157]
[1745237879728,0.063,139.13,139.08,18.64964886]
[1745237880040,0.063,139.13,139.06,18.64964886]
[1745237880433,0.063,139.13,139.05,26.0]
[1745237880434,0.20516157,139.13,139.05,26.0]
[1745237880638,0.063,139.13,139.05,26.0]
[1745237880939,0.20516157,139.13,139.05,26.0]
[1745237881938,25.15813685,139.12,139.05,26.0]
[1745237882539,25.15813685,139.12,139.06,18.64964886]
[1745237882746,25.15813685,139.12,139.08,18.64964886]
[1745237884123,0.063,139.13,139.08,18.64964886]
[1745237887246,0.063,139.13,139.1,18.64964886]
[1745237887725,0.063,139.13,139.12,44.64964886]
[1745237889947,0.063,139.13,139.12,18.64964886]
[1745237892444,0.063,139.13,139.09,1.6052]
[1745237892753,0.063,139.13,139.1,18.64964886]
[1745237894417,0.063,139.13,139.09,1.6052]
[1745237894618,0.063,139.13,139.08,18.64964886]
[1745237894836,26.0,139.12,139.03,6.3345]
[1745237895023,40.6,139.12,139.01,80.7]
[1745237895235,40.6,139.12,139.02,18.64964886]
[1745237896255,40.6,139.12,139.03,0.14216157]
[1745237896754,25.15994535,139.11,139.04,18.64964886]
[1745237898121,25.15994535,139.11,139.05,0.14216157]
[1745237898322,7.18855581,139.11,139.08,18.64964886]
[1745237899246,18.03200779,139.13,139.08,18.64964886]
[1745237901744,0.063,139.13,139.08,18.64964886]
[1745237908459,0.063,139.13,139.08,24.40171897]
[1745237909155,0.063,139.13,139.06,88.3878]
[1745237909341,0.063,139.13,139.07,18.64964886]
[1745237911651,0.063,139.13,139.07,24.40214649]
[1745237912155,0.063,139.13,139.09,18.64964886]
[1745237913263,0.063,139.13,139.09,24.40119109]
[1745237913658,0.063,139.13,139.12,44.64964886]
[1745237914259,0.063,139.13,139.1,26.0]
[1745237914465,0.063,139.13,139.11,18.64964886]
[1745237914643,0.063,139.13,139.08,18.64964886]
[1745237914842,0.063,139.13,139.07,18.64964886]
[1745237915041,0.063,139.13,139.09,18.64964886]
[1745237919176,0.063,139.13,139.09,24.401277]
[1745237919386,0.063,139.13,139.09,18.64964886]
[1745237921502,0.063,139.13,139.06,16.2158]
[1745237921780,0.063,139.13,139.09,26.0]
[1745237922796,0.063,139.13,139.07,44.64964886]
[1745237922996,0.063,139.13,139.07,26.0]
[1745237923896,61.15694091,139.13,139.06,80.7]
[1745237924071,61.15694091,139.13,139.05,44.64964886]
[1745237924778,0.14216157,139.12,139.05,26.0]
[1745237924979,61.15694091,139.13,139.05,26.0]
[1745237925297,0.14216157,139.12,139.05,26.0]
[1745237925480,61.15694091,139.13,139.05,26.0]
[1745237928187,0.14216157,139.12,139.05,26.0]
[1745237928393,61.15694091,139.13,139.05,26.0]
[1745237932194,25.15994535,139.11,139.05,26.0]
[1745237935502,25.15994535,139.11,139.06,18.64964886]
[1745237936529,7.18855581,139.11,139.06,18.64964886]
[1745237937106,7.33020067,139.12,139.06,18.64964886]
[1745237937285,7.1880391,139.12,139.06,18.64964886]
[1745237938111,7.1880391,139.12,139.06,24.40250235]
[1745237939106,25.21946907,139.13,139.06,18.64964886]
[1745237939711,61.15708137,139.13,139.05,26.0]
[1745237940404,0.14216157,139.12,139.05,26.0]
[1745237941310,62.76062444,139.11,139.03,18.64964886]
[1745237942015,26.81784535,139.11,139.03,44.64964886]
[1745237943403,26.81784535,139.11,139.03,50.40367815]
[1745237944001,26.81784535,139.11,139.03,44.64964886]
[1745237945815,26.81784535,139.11,139.06,26.0]
[1745237946022,25.15994535,139.11,139.07,18.64964886]
[1745237946406,25.15994535,139.11,139.06,26.0]
[1745237947218,53.91416863,139.11,139.03,26.0]
[1745237949428,32.5647,139.08,138.98,1.5899]
[1745237949725,0.14216157,139.07,138.96,5.8331387]
[1745237950028,80.91216157,139.07,138.96,26.0]
[1745237950423,80.91216157,139.07,138.97,18.64964886]
[1745237951198,0.14216157,139.05,138.96,26.0]
[1745237951415,61.13348675,139.04,138.96,26.0]
[1745237952825,61.13348675,139.04,138.97,18.64964886]
[1745237953519,53.94131184,139.04,138.97,18.64964886]
[1745237955626,61.13348675,139.04,138.97,18.64964886]
[1745237957236,61.13348675,139.04,138.96,26.0]
[1745237957730,0.14216157,139.03,138.96,26.0]
[1745237958025,6.5647,139.02,138.94,82.2899]
[1745237958933,6.5647,139.02,138.95,18.64964886]
[1745237959306,25.17804473,139.01,138.95,18.64964886]
[1745237963936,25.17804473,139.01,138.97,18.64964886]
[1745237964119,7.19372706,139.01,138.97,18.64964886]
[1745237965431,25.17080186,139.05,138.97,18.64964886]
[1745237965607,61.12909024,139.05,138.97,18.64964886]
[1745237967730,25.17080186,139.05,138.97,18.64964886]
[1745237970332,61.12909024,139.05,138.97,18.64964886]
[1745237970542,0.14216157,139.04,138.96,26.0]
[1745237970723,0.14216157,139.02,138.94,26.0]
[1745237973538,25.17804473,139.01,138.94,26.0]
[1745237975333,1.65526157,139.0,138.93,0.03]
[1745237977151,61.1554788,138.99,138.93,0.03]
[1745237978229,25.18166774,138.99,138.93,0.03]
[1745237980919,25.18166774,138.99,138.94,18.64964886]
[1745237981119,7.1942446,139.0,138.94,18.64964886]
[1745237982020,25.17985611,139.0,138.94,18.64964886]
[1745237983948,17.98561151,139.0,138.94,18.64964886]
[1745237988550,17.98561151,139.0,138.94,26.0]
[1745237988955,17.98561151,139.0,138.93,0.03]
[1745237990749,0.14216157,138.99,138.93,0.03]
[1745237991960,25.18347963,138.98,138.93,0.03]
[1745237992462,62.71507911,138.98,138.93,0.03]
[1745237995269,25.18710419,138.96,138.93,0.03]
[1745237996645,25.18710419,138.96,138.92,0.03]
[1745237997749,25.18710419,138.96,138.92,1e-08]
[1745237998067,0.14216157,138.95,138.92,1e-08]
[1745237998841,17.99208348,138.95,138.92,1e-08]
[1745238001862,7.19631548,138.96,138.92,1e-08]
[1745238002754,25.18710419,138.96,138.92,1e-08]
[1745238002956,43.16857327,138.99,138.92,1e-08]
[1745238003163,61.1554788,138.99,138.92,1e-08]
[1745238004575,0.14216157,138.98,138.92,1e-08]
[1745238005070,61.1554788,138.99,138.92,1e-08]
[1745238005373,0.14216157,138.98,138.92,1e-08]
[1745238006874,25.18529178,138.97,138.92,1e-08]
[1745238008081,61.16428005,138.97,138.92,1e-08]
[1745238010477,0.14216157,138.96,138.92,1e-08]
[1745238011559,25.18891687,138.95,138.92,1e-08]
[1745238016091,17.99208348,138.95,138.92,1e-08]
[1745238019094,0.14216157,138.94,138.87,0.03]
[1745238019586,0.14216157,138.92,138.87,0.03]
[1745238020284,25.19617017,138.91,138.87,0.03]
[1745238021694,7.19890576,138.91,138.87,18.67964886]
[1745238022270,17.99495895,138.93,138.87,18.67964886]
[1745238024075,17.99495895,138.93,138.87,0.03]
[1745238028300,17.99495895,138.93,138.87,18.67964886]
[1745238028480,7.19735137,138.94,138.87,18.67964886]
[1745238029199,7.19735137,138.94,138.88,1.6104]
[1745238029378,101.4692,139.0,138.91,18.64964886]
[1745238029585,25.18166774,138.99,138.94,26.0]
[1745238031628,7.19476221,138.99,138.95,18.64964886]
[1745238031781,7.19320961,139.02,138.95,18.64964886]
[1745238032178,7.19320961,139.02,138.95,105.82673565]
[1745238032401,7.19320961,139.02,138.96,0.14216157]
[1745238033300,25.17261219,139.04,138.95,99.34964886]
[1745238033598,25.17261219,139.04,138.95,105.826721]
[1745238034089,25.17261219,139.04,138.95,99.34964886]
[1745238034999,25.17261219,139.04,138.95,105.82672164]
[1745238035385,25.17261219,139.04,138.95,99.34964886]
[1745238035792,25.17261219,139.04,138.95,105.82675406]
[1745238036201,25.17261219,139.04,138.95,99.34964886]
[1745238036402,61.13348675,139.04,138.95,99.34964886]
[1745238037908,61.13348675,139.04,138.95,18.64964886]
[1745238038103,0.14216157,139.03,138.94,26.0]
[1745238038303,6.1226,139.02,138.95,18.64964886]
[1745238039682,25.17804473,139.01,138.95,18.64964886]
[1745238040709,25.17804473,139.01,138.94,26.0]
[1745238041205,61.14668007,139.01,138.94,26.0]
[1745238043316,1.6489,138.99,138.89,96.8027]
[1745238043498,26.0,138.97,138.89,1.5027]
[1745238043812,25.18891687,138.95,138.87,113.1311]
[1745238044000,25.18891687,138.95,138.88,18.64964886]
[1745238044793,25.18891687,138.95,138.87,26.03]
[1745238045109,61.17308383,138.95,138.88,18.64964886]
[1745238045917,17.99208348,138.95,138.88,18.64964886]
[1745238049220,17.99208348,138.95,138.87,26.03]
[1745238050317,0.14216157,138.94,138.87,26.03]
[1745238051306,0.14216157,138.94,138.87,0.03]
[1745238051512,1.609,138.93,138.87,0.03]
[1745238051821,0.14216157,138.92,138.87,0.03]
[1745238052320,25.19617017,138.91,138.87,0.03]
[1745238053303,7.19890576,138.91,138.87,0.03]
[1745238054616,25.19257123,138.93,138.87,0.03]
[1745238055812,25.19257123,138.93,138.88,26.0]
[1745238056807,61.17308383,138.95,138.88,26.0]
[1745238058312,61.17308383,138.95,138.87,0.03]
[1745238058513,61.17308383,138.95,138.87,18.67964886]
[1745238059404,25.18891687,138.95,138.88,1.5253]
[1745238059612,25.18891687,138.95,138.9,26.0]
[1745238060715,17.99208348,138.95,138.9,26.0]
[1745238061099,17.99208348,138.95,138.88,27.5253]
[1745238061918,17.99208348,138.95,138.88,26.0]
[1745238062221,17.99208348,138.95,138.87,18.67964886]
[1745238062821,25.18891687,138.95,138.87,18.67964886]
[1745238063427,61.17308383,138.95,138.87,18.67964886]
[1745238065126,25.18891687,138.95,138.87,18.67964886]
[1745238066930,17.99208348,138.95,138.87,18.67964886]
[1745238067429,17.99208348,138.95,138.87,0.03]
[1745238067605,0.14216157,138.94,138.87,0.03]
[1745238067806,17.99208348,138.95,138.87,18.67964886]
[1745238068320,17.99208348,138.95,138.88,0.14216157]
[1745238068521,17.99208348,138.95,138.9,44.64964886]
[1745238072932,7.19631548,138.96,138.9,44.64964886]
[1745238074333,17.98972779,138.97,138.9,44.64964886]
[1745238078523,17.98972779,138.97,138.93,26.0]
[1745238078744,7.19527989,138.98,138.94,18.64964886]
[1745238079239,25.18072342,139.0,138.94,18.64964886]
[1745238081041,7.1942446,139.0,138.94,25.12723836]
[1745238081340,0.063,139.01,138.94,20.17894886]
[1745238082040,0.063,139.01,138.98,18.64964886]
[1745238082639,0.063,139.01,138.98,26.0]
[1745238083635,0.063,139.01,138.99,18.64964886]
[1745238087226,0.063,139.01,138.98,26.0]
[1745238087452,0.063,139.01,138.96,18.64964886]
[1745238087624,0.063,139.01,138.97,26.0]
[1745238089234,0.063,139.01,138.95,18.64964886]
[1745238089441,25.24104473,139.01,138.95,44.64964886]
[1745238091041,25.24104473,139.01,138.98,26.0]
[1745238091249,7.25672706,139.01,138.98,26.0]
[1745238091543,0.063,139.01,138.98,26.0]
[1745238093647,0.063,139.01,138.99,18.64964886]
[1745238093825,0.063,139.01,139.0,46.17894886]
[1745238094147,7.19239081,139.04,139.0,46.17894886]
[1745238094148,7.25425772,139.06,139.01,18.64964886]
[1745238094340,7.25425772,139.06,139.04,26.0]
[1745238095052,0.063,139.06,139.05,18.64964886]
[1745238095250,7.25414051,139.06,139.05,18.64964886]
[1745238096155,0.063,139.06,139.05,18.64964886]
[1745238096538,0.063,139.06,139.05,44.64964886]
[1745238097637,0.063,139.06,139.05,18.64964886]
[1745238097834,0.063,139.06,139.05,18.79181043]
[1745238098352,0.063,139.06,139.05,24.54513657]
[1745238098559,0.063,139.06,139.05,112.97703657]
[1745238099061,0.063,139.07,139.06,0.14216157]
[1745238099430,0.063,139.07,139.05,107.08154886]
[1745238099848,0.063,139.07,139.06,26.0]
[1745238100039,0.063,139.07,139.06,44.64964886]
[1745238100730,0.063,139.07,139.06,50.54472284]
[1745238101355,0.063,139.07,139.06,131.24472284]
[1745238102445,0.063,139.08,139.07,18.79181043]
[1745238102637,0.063,139.08,139.07,99.49181043]
[1745238103561,0.063,139.08,139.07,105.24430917]
[1745238104266,0.063,139.09,139.07,105.24430917]
[1745238104561,0.063,139.09,139.08,33.37181043]
[1745238105264,0.063,139.14,139.12,44.79181043]
[1745238105436,0.063,139.14,139.12,131.24224171]
[1745238105959,0.063,139.14,139.13,18.79181043]
[1745238106168,0.063,139.14,139.13,33.37181043]
[1745238107158,0.063,139.14,139.13,44.87679572]
[1745238107457,0.063,139.14,139.13,39.12182839]
[1745238108267,0.063,139.14,139.13,114.07181043]
[1745238109158,0.063,139.14,139.13,119.82182839]
[1745238109735,0.063,139.14,139.13,114.07181043]
[1745238109935,0.063,139.14,139.13,113.92964886]
[1745238110458,0.063,139.14,139.13,114.07181043]
[1745238111345,0.063,139.14,139.13,113.92964886]
[1745238111555,0.063,139.14,139.13,139.92964886]
[1745238112066,0.063,139.14,139.13,114.07181043]
[1745238112244,0.063,139.14,139.13,119.82182839]
[1745238112557,0.063,139.14,139.13,114.07181043]
[1745238112759,0.063,139.14,139.13,113.92964886]
[1745238112948,0.063,139.14,139.13,139.92964886]
[1745238113269,0.063,139.14,139.13,113.92964886]
[1745238114564,0.063,139.14,139.13,114.07181043]
[1745238115161,0.063,139.14,139.13,113.92964886]
[1745238115355,0.063,139.14,139.13,44.64964886]
[1745238115679,0.063,139.14,139.11,80.7]
[1745238115873,0.063,139.14,139.13,26.0]
[1745238116176,0.063,139.14,139.07,80.73]
[1745238116341,0.063,139.14,139.09,26.0]
[1745238116748,0.063,139.14,139.08,18.64964886]
[1745238116948,0.063,139.14,139.09,26.0]
[1745238117248,7.1880391,139.12,139.09,26.0]
[1745238117864,7.18754535,139.13,139.1,18.64964886]
[1745238118262,0.063,139.14,139.1,18.64964886]
[1745238118263,0.063,139.14,139.13,44.64964886]
[1745238118460,0.063,139.14,139.13,125.49181043]
[1745238118973,0.063,139.16,139.13,125.49181043]
[1745238118974,0.063,139.16,139.14,0.14216157]
[1745238119164,0.063,139.16,139.15,18.79181043]
[1745238119361,0.063,139.16,139.15,25.25965088]
[1745238119763,0.063,139.16,139.15,105.95965088]
[1745238120157,0.063,139.18,139.17,26.0]
[1745238120381,0.063,139.18,139.17,125.49181043]
[1745238121453,0.063,139.18,139.17,131.9587214]
[1745238122278,0.063,139.18,139.17,125.34964886]
[1745238123056,0.063,139.18,139.17,131.9587214]
[1745238123764,0.063,139.18,139.17,125.34964886]
[1745238125375,0.063,139.18,139.11,80.7]
[1745238125553,0.063,139.18,139.1,14.56]
[1745238125756,25.21029127,139.18,139.1,14.56]
[1745238126056,25.21029127,139.18,139.13,26.0]
[1745238126846,25.21029127,139.18,139.1,18.64964886]
[1745238127271,0.14216157,139.17,139.07,0.03]
[1745238127582,0.14216157,139.17,139.07,18.67964886]
[1745238127873,0.14216157,139.17,139.07,0.03]
[1745238128059,1.77616157,139.15,139.07,0.03]
[1745238128251,14.56,139.14,139.07,18.67964886]
[1745238129868,25.15632861,139.13,139.07,18.67964886]